bitfinex/quotes_ETHUSD_20210701
["timestamp","ask_amount","ask_price","bid_price","bid_amount"]
[1625141569623,7.07862594,2115.9,2114.3,10.6587]
[1625141569625,22.07862594,2115.9,2114.3,10.6587]
[1625141569724,22.07862594,2115.9,2114.4,7.0861]
[1625141569725,3.40332831,2115.8,2114.4,7.0861]
[1625141569825,15.0,2115.7,2114.4,7.0861]
[1625141569976,15.0,2115.7,2113.9,10.2922]
[1625141569977,0.16,2115.6,2113.9,10.2922]
[1625141570086,3.9191,2115.6,2113.9,10.2922]
[1625141570188,15.0,2115.5,2113.9,10.2922]
[1625141570341,15.16,2115.5,2113.8,20.9009]
[1625141570438,18.97235627,2115.5,2113.8,20.9009]
[1625141570688,0.04,2115.4,2113.8,20.9009]
[1625141570841,7.08821,2115.2,2113.8,27.98895]
[1625141570943,22.08821,2115.2,2113.8,27.98895]
[1625141571290,15.25745461,2115.2,2113.8,27.98895]
[1625141571488,8.16924461,2115.2,2113.8,27.98895]
[1625141571738,11.42713572,2115.3,2113.8,27.98895]
[1625141572326,22.07179004,2115.2,2113.8,27.98895]
[1625141572427,7.07179004,2115.2,2113.8,27.98895]
[1625141572527,12.51118939,2115.2,2113.8,27.98895]
[1625141572627,0.08,2115.1,2113.8,27.98895]
[1625141572831,12.51118939,2115.2,2113.8,7.08805]
[1625141572933,20.86255051,2115.0,2113.2,10.9676]
[1625141573035,20.87243599,2115.0,2113.2,10.9676]
[1625141573137,4.48319953,2114.6,2113.2,10.9676]
[1625141573237,20.86255051,2114.5,2113.2,10.9676]
[1625141573383,20.86255051,2114.5,2112.7,10.9743]
[1625141573384,7.06511516,2114.4,2112.7,10.9743]
[1625141573481,7.12682935,2114.4,2112.7,10.9743]
[1625141573579,0.06171419,2114.4,2112.7,10.9743]
[1625141573682,0.07254142,2114.4,2112.6,12.42388626]
[1625141574184,7.10165723,2114.4,2113.1,7.09062]
[1625141574288,7.09083,2114.4,2112.8,9.45427]
[1625141574387,22.0979883,2114.4,2112.8,9.45427]
[1625141574486,31.33000091,2114.4,2112.8,9.45427]
[1625141574583,0.04828777,2114.3,2112.8,9.45427]
[1625141574684,0.04,2114.3,2112.6,12.42388626]
[1625141574781,0.07630085,2114.2,2112.6,12.42388626]
[1625141574932,0.04490249,2114.2,2112.6,12.42388626]
[1625141575033,0.04490249,2114.2,2112.6,1.73578626]
[1625141575234,7.09175,2114.1,2112.7,7.09148]
[1625141575387,15.0,2114.2,2112.7,7.09148]
[1625141575487,15.1,2114.0,2112.4,4.302832]
[1625141575587,15.10935752,2114.0,2112.4,4.302832]
[1625141575788,0.06,2113.9,2112.4,4.302832]
[1625141575885,3.8592341,2113.9,2112.4,4.302832]
[1625141575986,19.68557651,2113.8,2112.4,4.302832]
[1625141576087,15.00831845,2113.8,2112.4,4.302832]
[1625141576237,15.00820823,2113.8,2112.4,4.302832]
[1625141576435,0.00820823,2113.8,2112.4,4.302832]
[1625141576591,20.86255051,2113.8,2112.4,4.302832]
[1625141576686,20.87028032,2113.8,2112.4,4.302832]
[1625141576824,0.04,2113.7,2112.4,4.302832]
[1625141576924,4.7505,2113.7,2112.4,4.302832]
[1625141577129,7.09371,2113.6,2112.4,4.302832]
[1625141577330,0.06,2113.5,2112.4,3.2e-05]
[1625141577579,7.27192588,2113.4,2112.4,3.2e-05]
[1625141577683,11.89750239,2113.3,2111.3,11.82077]
[1625141577781,0.26156703,2113.1,2111.1,2.17910959]
[1625141578329,0.26156703,2113.1,2111.1,9.27535959]
[1625141578330,7.09684,2112.8,2111.1,9.27535959]
[1625141578430,7.10582984,2112.8,2111.1,9.27535959]
[1625141578537,0.00950432,2112.7,2111.1,9.27535959]
[1625141578629,0.01724825,2112.7,2111.1,9.27535959]
[1625141578732,0.00950432,2112.7,2111.1,9.27535959]
[1625141578830,14.31668058,2112.8,2111.1,9.27535959]
[1625141578982,0.01576347,2112.7,2111.1,9.27535959]
[1625141579085,20.86255051,2112.7,2111.1,9.27535959]
[1625141579184,0.00813454,2112.7,2111.1,9.27535959]
[1625141579284,29.0011176,2113.0,2111.1,9.27535959]
[1625141579433,36.0973476,2113.0,2111.1,9.27535959]
[1625141579534,0.02277644,2112.9,2111.1,9.27535959]
[1625141580037,17.84065505,2113.1,2111.1,9.27535959]
[1625141580184,17.84065505,2113.1,2111.1,13.78505959]
[1625141580286,17.84835348,2113.1,2111.1,13.78505959]
[1625141580433,6.48751093,2113.1,2111.1,13.78505959]
[1625141581958,6.48751093,2113.1,2111.1,10.23557959]
[1625141582510,6.48751093,2113.1,2111.5,7.09512]
[1625141582511,13.58216093,2113.1,2111.5,7.09512]
[1625141582611,34.44471144,2113.1,2111.5,7.09512]
[1625141582760,0.1,2113.0,2111.5,7.09512]
[1625141582960,0.14,2112.9,2111.5,7.09512]
[1625141583208,27.35006144,2113.1,2111.5,12.79103713]
[1625141584045,10.3182,2113.5,2111.5,12.79103713]
[1625141584047,23.1955138,2113.4,2111.5,12.79103713]
[1625141584289,6.47316664,2113.4,2111.5,12.79103713]
[1625141584390,6.47316664,2113.4,2111.6,0.06068718]
[1625141584592,33.65618326,2113.7,2111.9,3.54537]
[1625141584692,33.65618326,2113.7,2111.9,4.92617]
[1625141584838,6.46411625,2113.7,2111.9,4.92617]
[1625141584944,6.46411625,2113.7,2112.0,1.99751713]
[1625141585091,6.46411625,2113.7,2112.0,6.41511713]
[1625141585191,6.46411625,2113.7,2112.0,6.4372247]
[1625141585288,6.46411625,2113.7,2112.0,6.41511713]
[1625141586000,6.46411625,2113.7,2112.2,3.5452]
[1625141586202,6.46411625,2113.7,2112.8,7.09083]
[1625141586302,6.46411625,2113.7,2112.8,11.89173]
[1625141586701,6.46411625,2113.7,2112.8,13.88924713]
[1625141586901,6.46411625,2113.7,2113.4,1.0]
[1625141587001,23.13238766,2114.1,2113.4,1.0]
[1625141587302,23.29238766,2114.1,2113.4,1.0]
[1625141587455,3.76591307,2113.9,2113.4,1.0]
[1625141587653,3.76576223,2114.0,2113.4,1.0]
[1625141587851,6.99355333,2114.0,2113.4,1.0]
[1625141588002,0.08,2113.9,2113.4,1.0]
[1625141588187,0.16,2113.8,2113.4,1.0]
[1625141588385,23.12780366,2114.1,2113.4,1.0]
[1625141588487,16.66499658,2114.3,2113.4,4.2603]
[1625141588582,16.66499658,2114.3,2113.5,2.17299747]
[1625141588895,12.3643523,2114.3,2113.5,2.17299747]
[1625141588985,16.66397404,2114.4,2113.5,2.17299747]
[1625141589086,16.6619871,2114.7,2113.5,2.17299747]
[1625141589488,16.6619871,2114.7,2113.9,7.08755]
[1625141589838,16.6619871,2114.7,2113.5,9.4508]
[1625141589943,15.0,2114.6,2113.5,9.4508]
[1625141590047,15.0,2114.6,2113.4,1.0]
[1625141590048,15.16,2114.6,2113.4,1.0]
[1625141590141,8.33170441,2114.3,2113.4,1.0]
[1625141590406,9.82252064,2114.2,2113.4,1.0]
[1625141590556,9.40334239,2114.1,2113.4,1.0]
[1625141590855,12.62741303,2114.1,2113.4,1.0]
[1625141590955,15.0,2114.0,2113.4,1.0]
[1625141591055,35.86255051,2114.0,2113.4,1.0]
[1625141591155,21.02255051,2114.0,2113.4,1.0]
[1625141591257,10.47896611,2113.9,2112.7,9.45387]
[1625141591456,13.76336594,2113.9,2112.7,9.45387]
[1625141591656,18.00262446,2113.9,2112.7,9.45387]
[1625141592160,33.00262446,2113.9,2112.7,9.45387]
[1625141592261,40.09513446,2113.9,2112.6,11.81468]
[1625141592358,40.09513446,2113.9,2112.2,21.88288]
[1625141592460,0.04,2113.8,2112.2,21.88288]
[1625141592674,40.09513446,2113.9,2112.2,21.88288]
[1625141593311,40.09513446,2113.9,2112.2,11.81678]
[1625141593469,5.10345144,2113.6,2112.1,11.0743]
[1625141593565,5.10345144,2113.6,2111.9,10.3971]
[1625141593566,15.0,2113.5,2111.9,10.3971]
[1625141593712,15.0,2113.5,2111.8,12.40609747]
[1625141593713,0.05471184,2113.4,2111.8,12.40609747]
[1625141593816,0.05471184,2113.4,2111.8,2.17299747]
[1625141593915,40.70355987,2113.3,2111.7,11.81903]
[1625141594014,15.05587477,2113.2,2111.7,11.81903]
[1625141594112,20.16204922,2113.2,2111.7,11.81903]
[1625141594216,0.04,2113.1,2111.7,11.81903]
[1625141594313,0.0299339,2113.0,2111.7,11.81903]
[1625141595079,0.0299339,2113.0,2111.4,15.36819]
[1625141595080,24.42739553,2113.0,2111.4,11.82137]
[1625141595176,7.21192588,2112.9,2111.4,11.82137]
[1625141595277,0.01862032,2112.7,2111.4,11.82137]
[1625141595477,22.22817652,2112.9,2111.4,11.82137]
[1625141595625,20.86255051,2112.8,2111.4,11.82137]
[1625141596427,0.08,2112.7,2111.4,11.82137]
[1625141596526,8.33286832,2113.0,2111.4,11.82137]
[1625141596675,17.978066,2113.2,2111.4,16.86937]
[1625141596875,38.84023846,2113.3,2111.4,16.86937]
[1625141597177,5.09826868,2113.2,2111.4,16.86937]
[1625141597286,5.09832917,2113.1,2111.4,16.86937]
[1625141597535,5.09832917,2113.1,2111.5,7.09595]
[1625141597536,7.09631,2112.8,2111.5,7.09595]
[1625141597636,15.0,2112.7,2111.5,7.09595]
[1625141597783,7.09631,2112.8,2111.5,7.09595]
[1625141598034,27.95886051,2112.8,2111.5,7.09595]
[1625141598137,27.95886051,2112.8,2111.5,11.18025]
[1625141598739,20.86255051,2112.8,2111.5,11.18025]
[1625141598940,20.86255051,2112.8,2111.5,4.0843]
[1625141599291,12.60664484,2113.0,2111.5,4.0843]
[1625141599819,17.97605236,2113.1,2111.5,4.0843]
[1625141600121,17.97605236,2113.1,2111.5,11.18025]
[1625141600122,7.09507,2113.0,2111.5,11.18025]
[1625141600572,7.09507,2113.0,2111.5,10.66477497]
[1625141600974,15.0,2112.9,2111.5,10.66477497]
[1625141601071,15.12,2112.9,2111.5,10.66477497]
[1625141601271,0.12,2112.9,2111.5,10.66477497]
[1625141601373,5.09545584,2113.0,2111.5,10.66477497]
[1625141601473,12.6087334,2113.1,2111.5,10.66477497]
[1625141601736,27.6087334,2113.1,2111.5,10.66477497]
[1625141601817,12.6087334,2113.1,2111.5,10.66477497]
[1625141602570,0.51547503,2113.2,2111.5,10.66477497]
[1625141602670,12.60352217,2113.3,2111.6,3.54646]
[1625141602870,12.60352217,2113.3,2111.7,3.54653]
[1625141603277,12.60352217,2113.3,2112.4,7.09276]
[1625141603372,0.08,2113.2,2112.4,3.8374]
[1625141603936,12.60352217,2113.3,2112.4,3.8374]
[1625141604132,1.13167,2113.4,2112.4,3.8374]
[1625141604586,13.12270691,2113.6,2112.4,3.8374]
[1625141604687,13.12270691,2113.6,2112.4,10.93025]
[1625141604933,0.51547503,2113.6,2112.4,10.93025]
[1625141605592,8.31484345,2113.8,2112.4,10.93025]
[1625141605688,0.51547503,2114.0,2112.4,10.93025]
[1625141605689,8.31888029,2113.9,2112.5,0.03104082]
[1625141605943,0.51547503,2114.0,2112.5,0.03104082]
[1625141606036,0.51547503,2114.0,2112.4,3.86858096]
[1625141606164,0.51547503,2114.0,2112.8,3.5445]
[1625141606317,0.51547503,2114.0,2112.9,3.5441767]
[1625141606414,0.51547503,2114.0,2112.9,8.1178767]
[1625141606616,8.3173177,2114.3,2112.9,8.1178767]
[1625141606767,0.51547503,2114.6,2112.9,8.14217791]
[1625141606768,8.31899919,2114.4,2112.9,8.14217791]
[1625141606917,8.31899919,2114.4,2113.6,7.08706]
[1625141606918,2.41519331,2114.4,2113.6,7.08706]
[1625141607015,8.31839062,2114.5,2113.6,11.15086]
[1625141607115,5.09836844,2114.5,2113.6,11.15086]
[1625141607214,2.12545306,2114.6,2113.6,11.15086]
[1625141607665,2.95254965,2114.6,2113.6,11.15086]
[1625141607966,2.95254965,2114.6,2113.6,14.69397]
[1625141608066,2.95254965,2114.6,2113.6,7.60691]
[1625141608424,1.60997803,2114.6,2113.6,7.60691]
[1625141608864,1.61156188,2114.7,2113.6,7.60691]
[1625141609065,1.61156188,2114.7,2114.1,7.08623]
[1625141609213,1.61156188,2114.7,2114.1,11.34933]
[1625141609565,0.13440969,2114.8,2114.1,11.34933]
[1625141609664,0.13440969,2114.8,2114.2,0.08]
[1625141610165,0.13440969,2114.8,2114.1,4.2631]
[1625141610268,0.13439694,2115.0,2114.1,4.2631]
[1625141610468,0.13445395,2115.1,2114.1,4.2631]
[1625141610700,0.13445126,2115.2,2114.1,4.2631]
[1625141610798,0.13445126,2115.2,2114.5,7.08466]
[1625141610898,0.13445126,2115.2,2114.4,9.44621]
[1625141610899,0.13445074,2115.1,2114.4,9.44621]
[1625141610999,0.13445074,2115.1,2114.0,9.44831]
[1625141611097,15.0,2115.6,2114.0,9.44831]
[1625141611391,20.86255051,2115.7,2114.0,9.44831]
[1625141611986,7.08711,2115.5,2114.0,9.44831]
[1625141612089,22.08711,2115.5,2114.0,9.44831]
[1625141612288,0.06,2115.4,2113.4,22.19444]
[1625141612437,0.16,2115.3,2113.4,22.19444]
[1625141612536,15.16,2115.3,2113.4,22.19444]
[1625141612740,0.16,2115.3,2113.4,22.19444]
[1625141612842,10.43942588,2115.4,2113.4,23.69594]
[1625141612843,7.21192588,2115.4,2113.4,23.69594]
[1625141613002,7.21192588,2115.4,2113.5,14.2561]
[1625141613101,22.21192588,2115.4,2113.5,14.2561]
[1625141613454,29.29917588,2115.4,2113.8,9.45018]
[1625141614161,29.29917588,2115.4,2113.5,10.5224]
[1625141614162,21.37802554,2115.3,2113.5,10.5224]
[1625141614308,15.06624408,2115.2,2113.4,10.3848]
[1625141614554,15.18624408,2115.2,2113.4,10.3848]
[1625141614655,9.45318,2114.7,2113.4,10.3848]
[1625141614757,4.466,2114.6,2113.3,7.08959]
[1625141615008,20.86255051,2114.5,2113.3,7.08959]
[1625141615111,15.0,2114.4,2113.0,22.1517]
[1625141615229,0.01482684,2114.3,2113.0,11.0713]
[1625141615332,7.21192588,2114.2,2112.8,10.0495]
[1625141615429,0.05428641,2114.1,2112.8,10.0495]
[1625141615629,3.60398641,2114.1,2112.8,10.0495]
[1625141615732,7.09217,2113.9,2112.8,17.14108]
[1625141615831,7.09217,2113.9,2112.5,2.16583606]
[1625141615933,7.10126885,2113.9,2112.5,2.16583606]
[1625141616040,22.10126885,2113.9,2112.4,10.4097]
[1625141616132,0.72130189,2113.8,2112.4,10.4097]
[1625141616229,0.73019938,2113.8,2112.4,10.4097]
[1625141616831,0.57019938,2113.8,2112.4,10.4097]
[1625141616934,7.09261,2113.7,2112.4,17.50266]
[1625141617032,0.02718317,2113.6,2112.4,17.50266]
[1625141617135,7.09261,2113.7,2112.4,7.09296]
[1625141617237,0.0296373,2113.8,2112.4,7.09296]
[1625141618180,7.1222373,2113.8,2112.4,7.09296]
[1625141618281,7.63771233,2113.8,2112.4,7.09296]
[1625141618433,0.06,2113.7,2112.4,7.09296]
[1625141618686,20.86255051,2113.6,2112.0,11.81795]
[1625141618782,15.04008999,2113.5,2112.0,11.81795]
[1625141619083,0.04008999,2113.5,2112.0,11.81795]
[1625141619185,7.09344,2113.5,2112.4,7.09294]
[1625141619286,0.51547503,2113.5,2112.4,7.09294]
[1625141620053,0.51547503,2113.5,2112.4,9.25877606]
[1625141620404,7.21192588,2113.8,2112.4,9.25877606]
[1625141620957,7.21192588,2113.8,2112.4,6.4815979]
[1625141621211,0.51547503,2113.9,2112.4,6.4815979]
[1625141621456,10.0979,2114.0,2112.4,6.4815979]
[1625141623025,45.96045051,2114.0,2112.4,6.4815979]
[1625141623277,0.14,2113.9,2112.4,6.4815979]
[1625141623426,7.09235,2113.8,2112.4,6.4815979]
[1625141624933,0.51517583,2113.9,2112.4,6.4815979]
[1625141625333,0.04227187,2113.9,2112.4,6.4815979]
[1625141625636,0.04227187,2113.9,2112.4,4.31576184]
[1625141625842,7.25419775,2113.9,2112.4,4.31576184]
[1625141625939,15.0,2113.8,2112.3,12.18293]
[1625141626038,15.67517583,2113.8,2112.3,9.45633]
[1625141626137,15.68843404,2113.8,2112.3,9.45633]
[1625141626549,20.90255051,2113.7,2112.3,9.45633]
[1625141626650,15.0,2113.6,2112.3,9.45633]
[1625141626751,20.9128562,2113.7,2112.3,9.45633]
[1625141626849,35.90255051,2113.7,2112.3,9.45633]
[1625141627001,7.09375,2113.4,2112.0,11.81795]
[1625141627100,22.09375,2113.4,2112.0,11.81795]
[1625141627301,7.09375,2113.4,2112.0,11.81795]
[1625141628939,22.60892583,2113.4,2112.0,11.81795]
[1625141629192,0.04,2113.3,2111.7,12.25913606]
[1625141629296,7.27452258,2113.3,2111.7,10.0933]
[1625141629396,35.86255051,2113.2,2111.7,10.0933]
[1625141629491,0.07385029,2113.1,2111.7,10.0933]
[1625141629743,0.14,2113.0,2111.7,10.0933]
[1625141629846,0.28587065,2113.0,2111.7,10.0933]
[1625141629944,0.06324158,2112.9,2111.4,11.8206]
[1625141630093,0.23354553,2112.9,2111.4,11.8206]
[1625141630296,7.09644,2112.6,2111.4,11.8206]
[1625141630444,42.95899051,2112.6,2111.3,7.09665]
[1625141630546,20.87636678,2112.5,2111.2,10.2369]
[1625141630696,0.01844506,2112.3,2111.2,10.2369]
[1625141630792,0.01844506,2112.3,2110.5,10.2586]
[1625141630895,0.02726302,2112.3,2110.5,10.2586]
[1625141631101,0.00881796,2112.3,2110.5,10.2586]
[1625141631198,0.03750265,2112.2,2110.6,2.16443414]
[1625141631551,0.03750265,2112.2,2111.2,7.09691]
[1625141631951,20.99855708,2112.5,2111.2,7.09691]
[1625141632053,35.99855708,2112.5,2111.2,7.09691]
[1625141632204,0.14,2112.4,2111.2,7.09691]
[1625141632751,0.14,2112.4,2110.8,9.46318]
[1625141632853,7.23778,2112.4,2110.8,9.46318]
[1625141633004,15.0,2112.3,2110.8,9.46318]
[1625141633104,0.13618601,2112.2,2110.8,9.46318]
[1625141633291,0.19618601,2112.2,2110.8,9.46318]
[1625141633389,20.86255051,2112.1,2110.8,9.46318]
[1625141633490,15.0,2112.0,2110.8,9.46318]
[1625141633689,35.86255051,2112.1,2110.8,9.46318]
[1625141633890,20.86255051,2112.1,2110.8,9.46318]
[1625141635895,20.86255051,2112.1,2110.7,20.39992]
[1625141635896,20.8705547,2112.1,2110.7,10.9357]
[1625141636044,20.86255051,2112.1,2111.0,7.0979]
[1625141636241,35.86255051,2112.1,2111.0,7.0979]
[1625141636343,0.08,2112.0,2110.8,9.46318]
[1625141636845,20.86255051,2112.1,2110.8,9.46318]
[1625141636944,20.86255051,2112.1,2110.8,14.16578]
[1625141637838,15.0,2112.0,2110.8,14.16578]
[1625141638093,15.0,2112.0,2110.8,4.7026]
[1625141638094,7.09994,2111.8,2110.8,4.7026]
[1625141638193,15.0,2111.7,2110.4,10.6457]
[1625141638294,43.07447639,2111.7,2109.9,10.3229]
[1625141638392,0.03356166,2111.6,2109.9,21.1166]
[1625141638842,4.56834442,2111.6,2109.9,21.1166]
[1625141638998,0.04650154,2111.4,2109.9,21.1166]
[1625141639446,0.04650154,2111.4,2110.0,7.10127]
[1625141639597,3.01242625,2111.5,2110.0,11.29987]
[1625141639796,31.08889243,2111.7,2110.0,11.29987]
[1625141640201,3.0143872,2111.6,2110.0,11.29987]
[1625141640406,1.6442112,2111.6,2110.0,11.29987]
[1625141640503,1.6442112,2111.6,2110.0,13.33534217]
[1625141640601,31.08667423,2111.7,2110.0,13.33534217]
[1625141640803,20.86255051,2111.6,2110.0,13.33534217]
[1625141641005,4.68557651,2111.5,2110.0,13.33534217]
[1625141641101,4.68557651,2111.5,2110.0,11.29987]
[1625141641500,0.16,2111.4,2110.0,11.29987]
[1625141641602,26.07714094,2111.6,2110.0,11.29987]
[1625141642156,5.22006832,2111.5,2110.0,11.29987]
[1625141642596,15.0,2111.4,2110.0,11.29987]
[1625141642791,0.12,2111.3,2110.0,11.29987]
[1625141643241,8.52096819,2111.5,2110.0,11.29987]
[1625141643544,23.52096819,2111.5,2110.0,11.29987]
[1625141643743,8.52096819,2111.5,2110.0,11.29987]
[1625141643846,5.22006832,2111.5,2110.0,11.29987]
[1625141643944,0.08,2111.4,2110.0,11.29987]
[1625141644449,5.22006832,2111.5,2110.0,11.29987]
[1625141644593,29.38288609,2111.6,2110.0,11.29987]
[1625141644745,26.08473903,2111.6,2110.0,11.29987]
[1625141645146,26.08473903,2111.6,2110.0,13.33534217]
[1625141645243,20.86255051,2111.6,2110.0,16.88508217]
[1625141645443,20.86255051,2111.6,2110.7,7.09969]
[1625141645545,28.07447639,2111.6,2110.5,9.46626]
[1625141645649,0.16,2111.5,2110.5,9.46626]
[1625141645743,15.16,2111.5,2110.5,9.46626]
[1625141645848,5.38102882,2111.5,2110.5,9.46626]
[1625141645995,0.08,2111.4,2110.5,9.46626]
[1625141646194,36.59274237,2111.6,2110.5,9.46626]
[1625141646496,33.29534909,2111.6,2110.5,9.46626]
[1625141646941,15.0,2111.5,2110.5,9.46626]
[1625141647040,28.07447639,2111.6,2110.5,9.46626]
[1625141647191,33.29541469,2111.6,2110.5,9.46626]
[1625141647291,0.04,2111.5,2110.5,9.46626]
[1625141647940,33.29541469,2111.6,2110.5,9.46626]
[1625141648750,15.0,2111.5,2110.5,9.46626]
[1625141648846,33.29541469,2111.6,2110.5,9.46626]
[1625141649348,5.21858153,2111.5,2110.5,14.16916]
[1625141649448,5.37858153,2111.5,2110.5,14.16916]
[1625141649549,5.21527421,2111.4,2110.5,14.16916]
[1625141649752,20.21540082,2111.3,2110.5,14.16916]
[1625141649849,20.37540082,2111.3,2110.5,14.16916]
[1625141650002,5.37540082,2111.3,2110.5,14.16916]
[1625141650101,0.04,2111.2,2110.5,14.16916]
[1625141650251,20.86255051,2111.1,2110.5,14.16916]
[1625141651801,8.50779037,2111.4,2110.5,14.16916]
[1625141652000,56.81264155,2112.3,2110.5,14.16916]
[1625141652001,8.50424026,2111.8,2110.5,14.16916]
[1625141652098,8.50424026,2111.8,2110.6,17.32852217]
[1625141652399,8.50347163,2112.0,2111.0,4.72986]
[1625141652495,8.50347163,2112.0,2111.0,10.18706]
[1625141652652,0.27430554,2112.0,2111.1,0.08]
[1625141652745,8.22758043,2112.3,2111.0,10.18706]
[1625141652746,8.50183311,2112.3,2111.0,7.94638217]
[1625141652996,8.50183311,2112.3,2111.1,2.38154301]
[1625141653096,8.50183311,2112.3,2111.7,7.09614]
[1625141653194,10.399,2112.7,2111.7,7.09614]
[1625141653195,8.50193541,2112.4,2111.7,7.09614]
[1625141653843,8.50668875,2112.3,2111.7,7.09614]
[1625141654094,23.50668875,2112.3,2111.7,7.09614]
[1625141654244,23.50668875,2112.3,2111.4,9.45993]
[1625141654245,0.04,2112.2,2111.4,9.45993]
[1625141654343,5.25411415,2112.2,2111.3,9.45993]
[1625141654542,3.29291178,2112.3,2111.3,9.45993]
[1625141654543,5.21440277,2112.0,2111.3,9.45993]
[1625141654749,8.50772717,2112.0,2111.3,9.45993]
[1625141654908,3.84254793,2111.7,2110.5,20.7785]
[1625141654998,25.05988648,2111.7,2110.5,10.479]
[1625141655150,5.218878,2111.5,2110.5,10.479]
[1625141655297,5.218878,2111.5,2110.7,7.10009]
[1625141655395,8.51378517,2111.5,2110.7,7.10009]
[1625141655496,0.1,2111.4,2110.7,7.10009]
[1625141655596,5.31702909,2111.4,2110.7,7.10009]
[1625141655696,26.1795796,2111.4,2110.7,7.10009]
[1625141655944,26.0795796,2111.4,2110.7,7.10009]
[1625141656044,20.86255051,2111.4,2110.7,7.10009]
[1625141656245,8.51172499,2111.6,2110.7,7.10009]
[1625141656350,8.51172499,2111.6,2110.8,2.32504301]
[1625141656513,8.51098612,2111.7,2110.8,2.32504301]
[1625141656710,0.06,2111.6,2110.8,2.32504301]
[1625141657025,5.27672796,2111.6,2110.8,2.32504301]
[1625141657112,5.21672796,2111.6,2110.8,2.32504301]
[1625141657211,8.51099719,2111.7,2110.8,2.32504301]
[1625141657459,8.52064235,2111.8,2110.8,2.32504301]
[1625141658009,4.81004003,2111.8,2110.8,2.32504301]
[1625141658146,3.70995136,2111.9,2110.8,2.32504301]
[1625141658147,8.51914757,2111.9,2110.8,2.32504301]
[1625141658250,8.51914757,2111.9,2110.8,9.42440301]
[1625141658549,8.51914757,2111.9,2110.8,4.77436]
[1625141658651,8.51914757,2111.9,2110.7,9.46536]
[1625141658652,8.51914757,2111.9,2110.7,6.72762]
[1625141658653,0.16,2111.8,2110.7,6.72762]
[1625141658802,5.22215586,2111.6,2110.7,6.72762]
[1625141658997,5.22209334,2111.5,2110.7,6.72762]
[1625141659255,8.53254847,2111.6,2110.7,6.72762]
[1625141659353,20.86255051,2111.4,2111.0,7.09914]
[1625141659449,20.86255051,2111.4,2110.7,9.46536]
[1625141659603,15.0,2111.3,2110.0,12.39144301]
[1625141659698,30.49382335,2111.4,2110.0,12.39144301]
[1625141659802,0.14,2111.2,2110.0,12.39144301]
[1625141660215,20.86255051,2111.1,2110.0,12.39144301]
[1625141660366,20.86255051,2111.1,2110.0,2.32504301]
[1625141660467,3.4352,2111.1,2110.2,9.46745]
[1625141660564,3.4352,2111.1,2110.0,2.32504301]
[1625141660924,12.93381717,2111.3,2110.3,7.16894301]
[1625141661123,12.93346882,2111.4,2110.3,7.16894301]
[1625141661522,5.22945798,2111.3,2110.3,7.16894301]
[1625141661766,12.93437007,2111.4,2110.3,7.16894301]
[1625141662276,12.93543854,2111.5,2110.8,7.09868]
[1625141662621,12.93484357,2111.6,2110.8,7.09868]
[1625141663175,12.94087536,2111.7,2110.8,9.57372301]
[1625141663424,12.93904172,2112.0,2110.8,9.57372301]
[1625141664477,5.50574032,2112.4,2110.8,9.57372301]
[1625141664575,5.50574032,2112.4,2111.0,5.0]
[1625141664678,5.50574032,2112.4,2111.1,38.3401]
[1625141664897,5.50574032,2112.4,2111.2,0.08868124]
[1625141664979,5.50574032,2112.4,2111.2,2.56372425]
[1625141665080,4.40347691,2112.6,2111.2,2.56372425]
[1625141665229,4.40347691,2112.6,2111.2,2.47504301]
[1625141665436,4.40424896,2112.7,2111.2,2.47504301]
[1625141665534,4.40424896,2112.7,2111.9,7.09303]
[1625141665632,4.40424896,2112.7,2111.9,11.17313]
[1625141665881,4.40424896,2112.7,2112.0,2.47504301]
[1625141665980,42.58247583,2113.7,2112.0,2.47504301]
[1625141665981,4.4040802,2112.8,2112.0,2.47504301]
[1625141666236,4.4040802,2112.8,2111.6,9.457]
[1625141666332,4.40531248,2112.7,2111.6,9.457]
[1625141666833,4.40524199,2112.6,2111.6,9.457]
[1625141667144,19.40524199,2112.6,2111.4,11.82124]
[1625141667288,19.40524199,2112.6,2110.5,24.02964301]
[1625141667289,4.40582959,2112.3,2110.5,24.02964301]
[1625141667370,15.0,2112.2,2110.5,24.02964301]
[1625141667471,4.40657905,2111.8,2110.5,24.02964301]
[1625141667570,8.58077905,2111.8,2110.5,24.02964301]
[1625141667669,8.58077905,2111.8,2110.5,21.5546]
[1625141667771,4.40682383,2111.7,2110.5,21.5546]
[1625141668121,4.40682383,2111.7,2110.7,9.46423]
[1625141668420,19.40682383,2111.7,2110.5,10.7645]
[1625141668523,4.40682383,2111.7,2110.5,10.7645]
[1625141668776,3.6284,2111.9,2110.5,10.7645]
[1625141668777,4.40666894,2111.6,2110.5,10.7645]
[1625141668922,4.40666894,2111.6,2110.5,2.31047919]
[1625141669175,15.0,2112.0,2110.5,2.31047919]
[1625141669176,4.40655161,2111.7,2110.5,2.31047919]
[1625141669365,4.40655161,2111.7,2110.8,7.09858]
[1625141669423,4.40655161,2111.7,2110.5,2.31047919]
[1625141669519,7.09924,2112.0,2110.5,2.31047919]
[1625141669520,4.40559958,2111.6,2110.5,2.31047919]
[1625141669720,4.40548694,2111.7,2110.5,2.31047919]
[1625141669873,4.40548694,2111.7,2110.6,0.08]
[1625141669976,4.40521652,2111.8,2110.6,0.08]
[1625141670175,4.40521652,2111.8,2110.7,2.31047919]
[1625141670478,4.40514406,2111.9,2111.1,7.09749]
[1625141670825,4.40498604,2112.0,2111.1,7.09749]
[1625141670976,4.40533047,2111.8,2110.7,11.77450919]
[1625141671690,4.4051769,2111.9,2111.1,7.09766]
[1625141671894,4.40509964,2112.0,2111.1,7.09766]
[1625141672089,4.40509964,2112.0,2111.2,0.15]
[1625141672193,3.02866022,2111.8,2111.2,0.15]
[1625141672341,4.40532396,2111.8,2111.2,0.15]
[1625141672741,20.86255051,2111.7,2111.2,0.15]
[1625141672993,20.86255051,2111.7,2110.2,3.46]
[1625141672994,4.40471609,2111.5,2110.2,3.46]
[1625141673093,4.40471609,2111.5,2110.8,0.15]
[1625141673191,4.40471609,2111.5,2110.2,3.46]
[1625141673192,4.40506234,2111.4,2110.2,3.46]
[1625141673292,22.62146234,2111.4,2110.5,0.15]